{"text_format":"1","workbook":"xlsx","n_sheets":10,"sheets":["8D FRONT SHEET","photo refs","Sheet2","Sheet1","D4 Control Plan","D4 FMEA","D4 5WHY","D4 Cause Effect","D4 IS ISNOT","validations"],"not_rendered":{"charts":0,"images":39,"macros":0,"external_links":0,"defined_names":1,"comments":3,"pivot_tables":0},"unopened":[],"bounds":{"document_bytes":16777216,"sheet_cells":100000,"rows_first":2000,"rows_last":500,"rows_between":2000,"halvings":0,"cell_chars":16384,"cell_head_chars":4096},"cells_cut":0,"cells_raw":0,"read":"whole","date_system":"1900"}

{"sheet":"8D FRONT SHEET","index":0,"n_rows":99,"n_cols":9,"rows_kept":99,"cut":false,"hidden":false,"merged":[[83,7,83,8],[84,7,85,8],[86,7,87,8],[75,7,76,8],[77,7,78,8],[79,7,80,8],[81,7,82,8],[95,7,96,8],[91,0,92,3],[93,0,94,3],[95,0,96,3],[91,4,92,5],[84,6,85,6],[86,6,87,6],[88,6,89,6],[84,0,85,2],[86,0,87,2],[91,6,92,6],[93,6,94,6],[91,7,92,8],[93,7,94,8],[88,0,89,2],[84,3,85,3],[90,0,90,3],[81,6,82,6],[41,7,42,7],[43,7,44,7],[45,7,46,7],[47,7,48,7],[49,7,50,7],[51,7,52,7],[51,8,52,8],[47,8,48,8],[49,8,50,8],[51,6,52,6],[60,7,61,7],[73,6,74,6],[37,6,38,8],[35,6,35,8],[15,3,15,4],[75,6,76,6],[77,6,78,6],[79,6,80,6],[58,0,58,8],[60,0,70,5],[47,1,48,5],[41,6,42,6],[43,6,44,6],[45,6,46,6],[51,0,52,0],[51,1,52,5],[41,0,42,0],[43,0,44,0],[45,0,46,0],[47,0,48,0],[49,0,50,0],[41,1,42,5],[43,1,44,5],[45,1,46,5],[49,1,50,5],[10,9,16,11],[15,1,15,2],[12,1,12,2],[27,2,27,3],[2,0,8,0],[97,0,97,8],[9,1,9,2],[45,8,46,8],[88,7,89,8],[90,7,90,8],[72,7,72,8],[73,7,74,8],[41,8,42,8],[43,8,44,8],[24,2,24,3],[25,2,25,3],[26,2,26,3],[53,7,53,8],[72,4,72,5],[47,6,48,6],[49,6,50,6],[73,4,74,5],[73,0,74,3],[40,0,40,5],[0,0,0,8],[33,6,34,8],[31,6,31,8],[23,2,23,3],[14,1,14,2],[19,2,19,3],[20,2,20,3],[21,2,21,3],[22,2,22,3],[13,1,13,2],[2,1,8,1],[2,2,8,2],[17,0,17,8],[28,0,28,8],[2,5,8,6],[2,3,8,4],[9,3,9,4],[10,3,10,4],[11,3,11,4],[12,3,12,4],[13,3,13,4],[14,3,14,4],[9,7,16,8],[1,1,1,8],[90,4,90,5],[86,3,87,3],[88,3,89,3],[84,4,85,5],[86,4,87,5],[88,4,89,5],[18,2,18,3],[83,4,83,5],[75,0,76,3],[77,0,78,3],[79,0,80,3],[81,0,82,3],[75,4,76,5],[77,4,78,5],[79,4,80,5],[81,4,82,5],[53,4,53,5],[53,3,57,3],[31,1,37,4],[99,7,100,8],[100,1,100,5],[101,1,101,5],[102,1,102,5],[98,1,98,5],[99,6,100,6],[99,1,99,5],[93,4,94,5],[95,4,96,5],[11,1,11,2],[10,1,10,2],[16,1,16,2],[16,3,16,4],[9,5,9,6],[10,5,10,6],[11,5,11,6],[12,5,12,6],[13,5,13,6],[14,5,14,6],[15,5,15,6],[16,5,16,6]]}
["ASMPT 8D Report"]
["SUPPLIER 8D Type in Supplier Name below","CUSTOMER 8D                        "]
[null,"Suzhou",{"$f":"VLOOKUP(B3,Sheet1!D3:E29,2,FALSE)","v":"Phase  3C Unit S\nNo. 104 Su Mu Road\nSuzhou\n215021\nChina"},"Add CUSTOMER NAME "]
[]
[]
[]
[]
[]
[]
["ASMPT Part No.(s) ",null,null,"Date Raised"]
["Part/System Description",null,null,"8D Originator (ASMPT/Cust)"]
["Supplier Part No.",null,null,"Customer Contact(s):"]
["ASMPT Serial No.(s)",null,null," Customer POC Email"]
["Original ASMPT Works Order:",null,null,"Customer 8D Ref No:"]
["GFO Number",null,null,"Cust Part No (s):"]
["Blank",null,null,"Original Works Order:"]
["Blank",null,null,"Qty / Units Returned:"]
[]
["D1: TEAM FORMATION               \n\n","ASMPT 8D CHAMPION / LEAD:"]
["Other Team Members","Role","Job Title"]
[]
[]
[]
[]
[]
[]
[]
[]
["D2: PROBLEM  DESCRIPTION"]
[]
["5W2H : \"IS\"/\"IS NOT\"","Type here:",null,null,null,null,"STATEMENT GUIDANCE:"]
["WHAT (is the problem)",null,null,null,null,null,"Be sure to include Specific information as to the exact problem, such as where located, how many effected, since when, etc."]
["WHEN (was the problem Observed)"]
["WHY (is it a problem)",null,null,null,null,null,"Be sure to include any existing measureable data, such as deviations in performance values, measured non-confomance features characteristics etc"]
["WHERE (is the problem)"]
["WHO (is impacted)",null,null,null,null,null,"Where possible include any supporting photo's or documents that illustrate the issue and clarify where possible"]
["HOW (is the problem observed)"]
["HOW OFTEN (is the problem observed)",null,null,null,null,null,"Be sure to include why the problem has arisen, e.g. if not a deviation from standard, how does it impact the operation/performance of the system or interfaces.  Has anything else change that might be relevant?"]
[]
[]
["D3  CHOOSE AND VERIFY INTERIM CONTAINMENT ACTION(S) - \"Due within 24hrs\"\n\n       Action Item No.                                                                      Containment",null,null,null,null,null,"Responsible Name","Date Action Agreed","Date Action Completed"]
[1]
[]
[2]
[]
[3]
[]
[4]
[]
[5]
[]
[6]
[]
["Stock Location: ASMPT Sites","Qty Good","Qty to be Rejected","STOCK ASSESSMENT","Stock Location Vend",null,"Qty Good","Qty to be Rejected"]
[]
[]
[]
[]
["D4  DEFINE AND VERIFY ROOT CAUSE(S) - (complete any attachments)"]
[]
["Enter Text & Supporting Information here"]
[]
[]
[]
[]
[]
[]
[]
[]
[]
[]
[]
["D5  CHOOSE AND VERIFY PERMANENT CORRECTIVE ACTION(S) ",null,null,null,"Responsible",null,"Target Date","Actual Date"]
[]
[]
[]
[]
[]
[]
[]
[]
[]
[]
["D6  IMPLEMENT & VALIDATE PERMANENT CORRECTIVE ACTIONS",null,null,"Verification Method","Responsible",null,"Target Date","Actual Date"]
[]
[]
[]
[]
[]
[]
["D7  SYSTEM ACTIONS TO PREVENT RECURRENCE                                                                   ",null,null,null,"Responsible",null,"Target Date","Actual Date"]
[]
[]
[]
[]
[]
[]
["D8  TEAM AND INDIVIDUAL RECOGNITION  "]
["Name:","Recognition ",null,null,null,null,"Name / Signed by Final Closure:","Final Closure Date"]

{"sheet":"photo refs","index":1,"n_rows":3,"n_cols":2,"rows_kept":3,"cut":false,"hidden":false,"merged":[]}
["IMAGE REF No. 1","IMAGE REF No. 2"]
[]
["IMAGE REF No. 3","IMAGE REF No. 4"]

{"sheet":"Sheet2","index":2,"n_rows":22,"n_cols":8,"rows_kept":22,"cut":false,"hidden":true,"merged":[[3,5,3,6],[3,8,3,12],[4,5,4,6],[4,8,4,12],[5,5,5,6],[5,8,5,12],[15,5,15,6],[15,8,15,12],[6,5,6,6],[6,8,6,12],[7,5,7,6],[7,8,7,12],[8,5,8,6],[8,8,8,12],[9,5,9,6],[9,8,9,12],[10,8,10,12],[14,5,14,6],[14,8,14,12],[16,5,16,6],[16,8,16,12],[17,5,17,6],[17,8,17,12],[18,5,18,6],[18,8,18,12],[19,5,19,6],[19,8,19,12],[20,5,20,6],[20,8,20,12],[21,8,21,12]]}
[]
[]
[]
[null,null,null,null,"Customer Name:",null,null,"8D Originator"]
[null,null,null,null,"Customer Ref:",null,null,"Date Raised"]
[null,null,null,null,null,null,null,"Cust Name"]
[null,null,null,null,"ASM AS stock No.:",null,null,"Cust Email:"]
[null,null,null,null,"Part  Description",null,null,"Cust Ref"]
[null,null,null,null,"Serial Number(s):",null,null,"Defect Code:"]
[null,null,null,null,"Original Works Order:",null,null,"Cust Part No."]
[null,null,null,null,"Qty Returned:",null,null,"Liability:"]
[]
[]
[]
[null,null,null,null,"Customer Name:",null,null,"8D Originator"]
[null,null,null,null,"Customer Ref:",null,null,"Date Raised"]
[null,null,null,null,null,null,null,"Cust Name"]
[null,null,null,null,"ASM AS stock No.:",null,null,"Cust Email:"]
[null,null,null,null,"Part  Description",null,null,"Cust Ref"]
[null,null,null,null,"Serial Number(s):",null,null,"Defect Code:"]
[null,null,null,null,"Original Works Order:",null,null,"Cust Part No."]
[null,null,null,null,"Qty Returned:",null,null,"Liability:"]

{"sheet":"Sheet1","index":3,"n_rows":29,"n_cols":5,"rows_kept":29,"cut":false,"hidden":true,"merged":[]}
[]
[]
[null,null,null,"Weymouth","11 Albany Road\nGranby Industrial Estate\nWeymouth\nDorset\nDT4 9TH\nUnited Kingdom"]
[null,null,null,"Suwanee","3975 Lafefield Court\nSuite 106\nSwanee GA 30024\nUSA"]
[null,null,null,"San Hose","Multi test Burn In Products Facility\n3078 Kenneth  Street\nSanta Clara\nCA 95054\nUSA"]
[null,null,null,"Memphis","5425 Rines Road\nSuite 3\nMemphis TN 38115\nUSA"]
[null,null,null,"Chicago","1785 Winnetka Circle\nRolling Meadows\nChicago IL 60008\nUSA"]
[null,null,null,"Savvis","Savvis LO1\n360 Ajax Ave\nSlough\nSL1 UK"]
[null,null,null,"Singapore","535 Yishun Industrial Park A\nASM Tech Park Building 2\nYishun 768775\nSingapore"]
[null,null,null,"Sollentuna","Sofielundsvagen 2\nSE 19147\nSollentuna\nSweden"]
[null,null,null,"Eindhoven"]
[null,null,null,"Penang"]
[null,null,null,"Guadalajara","Av.Periferico Sur 7980 3B\nCol. Nueva Sta. Maria. C.P\nTlaquepague, JA\n45530\nMexico"]
[null,null,null,"Changwon"]
[null,null,null,"Bundang"]
[null,null,null,"Chennai"]
[null,null,null,"Bangalore"]
[null,null,null,"Manchester","Imperial Court 2\nExchange Quay\nSalford\nManchester\nM5 3EH\nUnited Kingdom"]
[null,null,null,"Seelze","Immengarten 2\n30926 Seelze\nGermany"]
[null,null,null,"Stuttgart","Motorstrasse 25\n70499 Stuttgart\nGermany\n"]
[null,null,null,"Mulheim","Mellinghofer Strasse 77\n45473 Mulheim\nGermany"]
[null,null,null,"Munchen","Rupert Mayer Strasse 44\n81379 Munchen\nGermany"]
[null,null,null,"Bad Vilbel","ASM Assembly SymbH & Co\nTheodor-Heuss Strr.57\nBad Vilbel\n61118\nGermany"]
[null,null,null,"Bergkirchen","Gadastr. 26\n85232 Bergkirchen\nGermany"]
[null,null,null,"Tianjin"]
[null,null,null,"Suzhou","Phase  3C Unit S\nNo. 104 Su Mu Road\nSuzhou\n215021\nChina"]
[null,null,null,"Shanghai","3/F, Building C\nThe new Bund World trade Centre Phase 2\nNo 3 Lane 227 Dongyu Road\nPudong New District\nShanghai 200126\nChina"]
[null,null,null,"Gyor","Platanfa u. 2\n9027 Gyor\nHungary"]
[null,null,null,"Vienna","Rivergate Gate 1/3 OG/Top D\nHandelskai\n1200 Vienna\nAustria"]

{"sheet":"D4 Control Plan","index":4,"n_rows":24,"n_cols":7,"rows_kept":24,"cut":false,"hidden":false,"merged":[[22,1,22,2],[23,1,23,2],[21,1,21,2],[20,1,20,2],[15,1,15,2],[16,1,16,2],[17,1,17,2],[18,1,18,2],[19,1,19,2],[14,1,14,2],[10,1,11,6],[12,1,13,2],[12,3,13,3],[12,4,13,4],[12,5,12,6]]}
[]
[]
[]
[]
[]
[]
[]
[]
[]
[]
[null,"Review the following documents for necessary revisions as a result of corrective actions. \nAdd additional documents if applicable."]
[]
[null,"Document",null,"Tick if Applicable","Who Responsible","Completion Date"]
[null,null,null,null,null,"Planned","Actual"]
[null,"Udpdate Product drawing(s)"]
[null,"Update Product specifications Documentation"]
[null,"Revise Internal Work / Build Instructions"]
[null,"Master Sample Change or update"]
[null,"Revise Process Flow Charts"]
[null,"SPC Documentation and Control Plan Review"]
[null,"Health & Safety Review "]
[null,"Ongoing Inspection frequency / spot check to be set up"]
[null,"FMEA Review Required"]
[null,"Gages/Fixtures Review"]

{"sheet":"D4 FMEA","index":5,"n_rows":53,"n_cols":29,"rows_kept":53,"cut":false,"hidden":false,"merged":[[52,2,52,5],[52,6,52,9],[52,11,52,14],[52,16,52,18],[19,21,21,28],[50,2,50,5],[50,6,50,9],[50,11,50,14],[50,16,50,18],[51,2,51,5],[51,6,51,9],[51,11,51,14],[51,16,51,18],[48,2,48,5],[48,6,48,9],[48,11,48,14],[48,16,48,18],[49,2,49,5],[49,6,49,9],[49,11,49,14],[49,16,49,18],[46,2,46,5],[46,6,46,9],[46,11,46,14],[46,16,46,18],[47,2,47,5],[47,6,47,9],[47,11,47,14],[47,16,47,18],[43,2,43,5],[43,6,43,9],[43,11,43,14],[43,16,43,18],[44,2,44,5],[44,6,44,9],[44,11,44,14],[44,16,44,18],[45,2,45,5],[45,6,45,9],[45,11,45,14],[45,16,45,18],[40,2,40,5],[40,6,40,9],[40,11,40,14],[40,16,40,18],[41,2,41,5],[41,6,41,9],[41,11,41,14],[41,16,41,18],[42,2,42,5],[42,6,42,9],[42,11,42,14],[42,16,42,18],[37,2,37,5],[37,6,37,9],[37,11,37,14],[37,16,37,18],[38,2,38,5],[38,6,38,9],[38,11,38,14],[38,16,38,18],[39,2,39,5],[39,6,39,9],[39,11,39,14],[39,16,39,18],[34,2,34,5],[34,6,34,9],[34,11,34,14],[34,16,34,18],[35,2,35,5],[35,6,35,9],[35,11,35,14],[35,16,35,18],[36,2,36,5],[36,6,36,9],[36,11,36,14],[36,16,36,18],[31,2,31,5],[31,6,31,9],[31,11,31,14],[31,16,31,18],[32,2,32,5],[32,6,32,9],[32,11,32,14],[32,16,32,18],[33,2,33,5],[33,6,33,9],[33,11,33,14],[33,16,33,18],[28,2,28,5],[28,6,28,9],[28,11,28,14],[28,16,28,18],[29,2,29,5],[29,6,29,9],[29,11,29,14],[29,16,29,18],[30,2,30,5],[30,6,30,9],[30,11,30,14],[30,16,30,18],[25,2,25,5],[25,6,25,9],[25,11,25,14],[25,16,25,18],[26,2,26,5],[26,6,26,9],[26,11,26,14],[26,16,26,18],[27,2,27,5],[27,6,27,9],[27,11,27,14],[27,16,27,18],[22,16,22,18],[23,2,23,5],[23,6,23,9],[23,11,23,14],[23,16,23,18],[24,2,24,5],[24,6,24,9],[24,11,24,14],[24,16,24,18],[5,1,5,11],[8,1,8,5],[8,6,8,11],[12,1,12,11],[15,1,15,11],[19,1,19,11],[22,2,22,5],[22,6,22,9],[22,11,22,14]]}
[]
[]
[null,"FMEA"]
[]
[null,"Project Name"]
[null,null,null,null,null,null,null,null,null,null,null,null,null,null,null,null,null,1]
[null,null,null,null,null,null,null,null,null,null,null,null,null,null,null,null,null,2]
[null,"Prepared by",null,null,null,null,null,null,null,null,null,null,null,null,null,null,null,3]
[null,null,null,null,null,null,null,null,null,null,null,null,null,null,null,null,null,4]
[null,null,null,null,null,null,null,null,null,null,null,null,null,null,null,null,null,5]
[null,null,null,null,null,null,null,null,null,null,null,null,null,null,null,null,null,8]
[null,"Product / Service",null,null,null,null,null,null,null,null,null,null,null,null,null,null,null,9]
[null,null,null,null,null,null,null,null,null,null,null,null,null,null,null,null,null,10]
[]
[null,"Process"]
[]
[]
[]
[null,"Process Owner"]
[null,null,null,null,null,null,null,null,null,null,null,null,null,null,null,null,null,null,null,null,null,"FUTURE STATE "]
[]
[]
[null,"Step","Process Step - Activity",null,null,null,"Potential Failure Mode",null,null,null,"SEV","Potential Cause of Failure",null,null,null,"OCC","Effect of Failure",null,null,"DET","Current State RPN","Actions Recommended","Who","Target Date","Status","SEV","OCC","DET","RPN"]
[null,null,null,null,null,null,null,null,null,null,null,null,null,null,null,null,null,null,null,null,{"$f":"K24*P24*T24","v":0},null,null,null,null,null,null,null,{"$f":"PRODUCT(Z24,AA24,AB24)","v":0}]
[null,null,null,null,null,null,null,null,null,null,null,null,null,null,null,null,null,null,null,null,{"$f":"K25*P25*T25","v":0},null,null,null,null,null,null,null,{"$f":"PRODUCT(Z25,AA25,AB25)","v":0}]
[null,null,null,null,null,null,null,null,null,null,null,null,null,null,null,null,null,null,null,null,0,null,null,null,null,null,null,null,0]
[null,null,null,null,null,null,null,null,null,null,null,null,null,null,null,null,null,null,null,null,0,null,null,null,null,null,null,null,0]
[null,null,null,null,null,null,null,null,null,null,null,null,null,null,null,null,null,null,null,null,0,null,null,null,null,null,null,null,0]
[null,null,null,null,null,null,null,null,null,null,null,null,null,null,null,null,null,null,null,null,0,null,null,null,null,null,null,null,0]
[null,null,null,null,null,null,null,null,null,null,null,null,null,null,null,null,null,null,null,null,0,null,null,null,null,null,null,null,0]
[null,null,null,null,null,null,null,null,null,null,null,null,null,null,null,null,null,null,null,null,0,null,null,null,null,null,null,null,0]
[null,null,null,null,null,null,null,null,null,null,null,null,null,null,null,null,null,null,null,null,0,null,null,null,null,null,null,null,0]
[null,null,null,null,null,null,null,null,null,null,null,null,null,null,null,null,null,null,null,null,0,null,null,null,null,null,null,null,0]
[null,null,null,null,null,null,null,null,null,null,null,null,null,null,null,null,null,null,null,null,0,null,null,null,null,null,null,null,0]
[null,null,null,null,null,null,null,null,null,null,null,null,null,null,null,null,null,null,null,null,0,null,null,null,null,null,null,null,0]
[null,null,null,null,null,null,null,null,null,null,null,null,null,null,null,null,null,null,null,null,0,null,null,null,null,null,null,null,0]
[null,null,null,null,null,null,null,null,null,null,null,null,null,null,null,null,null,null,null,null,0,null,null,null,null,null,null,null,0]
[null,null,null,null,null,null,null,null,null,null,null,null,null,null,null,null,null,null,null,null,0,null,null,null,null,null,null,null,0]
[null,null,null,null,null,null,null,null,null,null,null,null,null,null,null,null,null,null,null,null,0,null,null,null,null,null,null,null,0]
[null,null,null,null,null,null,null,null,null,null,null,null,null,null,null,null,null,null,null,null,0,null,null,null,null,null,null,null,0]
[null,null,null,null,null,null,null,null,null,null,null,null,null,null,null,null,null,null,null,null,0,null,null,null,null,null,null,null,0]
[null,null,null,null,null,null,null,null,null,null,null,null,null,null,null,null,null,null,null,null,0,null,null,null,null,null,null,null,0]
[null,null,null,null,null,null,null,null,null,null,null,null,null,null,null,null,null,null,null,null,0,null,null,null,null,null,null,null,0]
[null,null,null,null,null,null,null,null,null,null,null,null,null,null,null,null,null,null,null,null,0,null,null,null,null,null,null,null,0]
[null,null,null,null,null,null,null,null,null,null,null,null,null,null,null,null,null,null,null,null,0,null,null,null,null,null,null,null,0]
[null,null,null,null,null,null,null,null,null,null,null,null,null,null,null,null,null,null,null,null,0,null,null,null,null,null,null,null,0]
[null,null,null,null,null,null,null,null,null,null,null,null,null,null,null,null,null,null,null,null,0,null,null,null,null,null,null,null,0]
[null,null,null,null,null,null,null,null,null,null,null,null,null,null,null,null,null,null,null,null,0,null,null,null,null,null,null,null,0]
[null,null,null,null,null,null,null,null,null,null,null,null,null,null,null,null,null,null,null,null,0,null,null,null,null,null,null,null,0]
[null,null,null,null,null,null,null,null,null,null,null,null,null,null,null,null,null,null,null,null,0,null,null,null,null,null,null,null,0]
[null,null,null,null,null,null,null,null,null,null,null,null,null,null,null,null,null,null,null,null,0,null,null,null,null,null,null,null,0]
[null,null,null,null,null,null,null,null,null,null,null,null,null,null,null,null,null,null,null,null,0,null,null,null,null,null,null,null,0]
[null,null,null,null,null,null,null,null,null,null,null,null,null,null,null,null,null,null,null,null,0,null,null,null,null,null,null,null,0]

{"sheet":"D4 5WHY","index":6,"n_rows":44,"n_cols":12,"rows_kept":44,"cut":false,"hidden":false,"merged":[[43,12,44,22],[9,11,10,22],[12,12,12,22],[15,12,16,22],[19,12,19,22],[22,12,23,22],[26,12,26,22],[29,12,30,22],[33,12,33,22],[36,12,37,22],[40,12,40,22],[9,3,12,6],[14,3,17,6],[9,1,11,2],[19,3,22,6],[19,1,22,2],[14,1,17,2]]}
[]
[]
[]
[null,null,null,"REPEATED WHY ANALYSIS"]
[]
[]
[]
[]
[]
[null,"Problem or Issue",null,null,null,null,null,null,null,null,null,"Type Information in below to complete:"]
[]
[]
[null,null,null,null,null,null,null,null,null,null,"1st WHY","WHY…."]
[]
[null,"Why Not Found"]
[null,null,null,null,null,null,null,null,null,null,null,"Answer"]
[]
[]
[]
[null,"What Systematic Error",null,null,null,null,null,null,null,null,"2nd WHY","WHY…."]
[]
[]
[null,null,null,null,null,null,null,null,null,null,null,"Answer"]
[]
[]
[]
[null,null,null,null,null,null,null,null,null,null,"3rd WHY","WHY…."]
[]
[]
[null,null,null,null,null,null,null,null,null,null,null,"Answer"]
[]
[]
[]
[null,null,null,null,null,null,null,null,null,null,"4th WHY","WHY…."]
[]
[]
[null,null,null,null,null,null,null,null,null,null,null,"Answer"]
[]
[]
[]
[null,null,null,null,null,null,null,null,null,null,"5th WHY","WHY…."]
[]
[]
[null,null,null,null,null,null,null,null,null,null,null,"Answer"]

{"sheet":"D4 Cause Effect","index":7,"n_rows":37,"n_cols":61,"rows_kept":37,"cut":false,"hidden":false,"merged":[[14,60,25,78],[3,8,4,15],[3,27,4,34],[3,46,4,53],[36,8,37,15],[36,27,37,34],[36,46,37,53]]}
[]
[]
[]
[null,null,null,null,null,null,null,null,"Material",null,null,null,null,null,null,null,null,null,null,null,null,null,null,null,null,null,null,"Man",null,null,null,null,null,null,null,null,null,null,null,null,null,null,null,null,null,null,"Method"]
[]
[]
[]
[]
[]
[]
[]
[]
[]
[]
[null,null,null,null,null,null,null,null,null,null,null,null,null,null,null,null,null,null,null,null,null,null,null,null,null,null,null,null,null,null,null,null,null,null,null,null,null,null,null,null,null,null,null,null,null,null,null,null,null,null,null,null,null,null,null,null,null,null,null,null,"TYPE EFFECT HERE"]
[]
[]
[]
[]
[]
[]
[]
[]
[]
[]
[]
[]
[]
[]
[]
[]
[]
[]
[]
[]
[]
[null,null,null,null,null,null,null,null,"Machine",null,null,null,null,null,null,null,null,null,null,null,null,null,null,null,null,null,null,"Measurement",null,null,null,null,null,null,null,null,null,null,null,null,null,null,null,null,null,null,"Environment"]

{"sheet":"D4 IS ISNOT","index":8,"n_rows":27,"n_cols":11,"rows_kept":27,"cut":false,"hidden":false,"merged":[[23,8,26,9],[23,10,26,11],[18,8,20,9],[16,10,17,11],[18,10,20,11],[21,8,22,9],[21,10,22,11],[21,1,22,1],[23,1,26,1],[21,3,22,5],[1,1,3,7],[15,8,15,9],[4,1,5,3],[4,4,5,7],[16,3,17,5],[16,6,17,7],[18,3,20,5],[18,6,20,7],[18,1,20,1],[21,6,22,7],[23,3,26,5],[23,6,26,7],[16,8,17,9],[15,10,15,11],[16,1,17,1],[6,1,7,3],[6,4,7,7],[8,1,9,3],[8,4,9,7],[15,3,15,5],[15,6,15,7],[12,1,14,7],[10,1,11,3],[10,4,11,7]]}
[]
[null,"IS / IS NOT Comparative Analysis"]
[]
[]
[null,"8D Report No."]
[]
[null,"Define the exact Problem"]
[]
[null,"How was it  detected?"]
[]
[null,"Detected by:"]
[]
[null,"IS / IS NOT Comparative Analysis"]
[]
[]
[null,null,"Considerations","IS",null,null,"IS NOT",null,"Any Differences",null,"Any Changes"]
[null,"WHAT","What specific object(s) shows the defect?\nWhat specific objects(s) do  not show the defect? "]
[null,null,"What is the specific defect?\nWhat is not the specific defect?"]
[null,"WHERE","Where on the object can the defect be observed?\nWhere on the object is the defect not observed?"]
[null,null,"Where (geographically) has the defect been observed?\nWhere (geographically) has the defect Not been observed?"]
[null,null,"Where has the defect been seen since?\nWhere has the defect Not been seen since?"]
[null,"WHEN","When was the defect first been observed?\nWhen was the defect not observed?"]
[null,null,"When has the defect been seen since?"]
[null,"HOW MANY","How many objects are affected\nHow many objects are not effected"]
[null,null,"How big is the defect?"]
[null,null,"How many defects per object?"]
[null,null,"Is there a trend?"]

{"sheet":"validations","index":9,"n_rows":16,"n_cols":6,"rows_kept":16,"cut":false,"hidden":true,"merged":[]}
[]
[]
[]
[]
[null,null,null,null,null,"WEYMOUTH 8D Champion 1"]
[null,null,null,null,null,"WEYMOUTH 8D Champion 2"]
[null,null,null,null,null,"WEYMOUTH 8D Champion 3"]
[null,null,null,null,null,"MUNICH 8D Champion 1"]
[null,null,null,null,null,"MUNICH 8D Champion 2"]
[null,null,null,null,null,"MUNICH 8D Champion 3"]
[null,null,null,null,null,"SING 8D Champion 1"]
[null,null,null,null,null,"SING 8D Champion 2"]
[null,null,null,null,null,"SING 8D Champion 3"]
[null,null,null,null,null,"MALAYSIA 8D Champion 1"]
[null,null,null,null,null,"MALAYSIA 8D Champion 2"]
[null,null,null,null,null,"MALAYSIA 8D Champion 3"]